[Event "*** SCC Grand Prix: Titled Tuesday Blitz"]
[Site "Chess.com"]
[Date "2020.09.29"]
[Round "5"]
[White "Evgeny81"]
[Black "daro94"]
[Result "0-1"]
[WhiteElo "2666"]
[BlackElo "2939"]
[TimeControl "180+1"]
[EndTime "10:54:43 PDT"]
[Termination "daro94 won by resignation"]

1. Nf3 {[%clk 0:03:00.9]} 1... Nf6 {[%clk 0:02:57.6]} 2. c4 {[%clk 0:03:01.1]}
2... b6 {[%clk 0:02:57]} 3. g3 {[%clk 0:03:00.8]} 3... Bb7 {[%clk 0:02:57.5]} 4.
Bg2 {[%clk 0:03:01.2]} 4... c5 {[%clk 0:02:57.7]} 5. O-O {[%clk 0:03:01.3]} 5...
g6 {[%clk 0:02:58]} 6. b3 {[%clk 0:03:01.5]} 6... Bg7 {[%clk 0:02:58.3]} 7. Bb2
{[%clk 0:03:01.9]} 7... O-O {[%clk 0:02:58.9]} 8. e3 {[%clk 0:03:01.8]} 8... d6
{[%clk 0:02:57.8]} 9. d4 {[%clk 0:03:01.1]} 9... Nbd7 {[%clk 0:02:56.7]} 10. Nc3
{[%clk 0:03:00.4]} 10... Ne4 {[%clk 0:02:56.6]} 11. Rc1 {[%clk 0:02:57.3]} 11...
Nxc3 {[%clk 0:02:55.1]} 12. Bxc3 {[%clk 0:02:58.2]} 12... Be4 {[%clk 0:02:49.9]}
13. Qe2 {[%clk 0:02:53]} 13... Qc7 {[%clk 0:02:47.6]} 14. Rfd1 {[%clk
0:02:49.7]} 14... Qb7 {[%clk 0:02:44.7]} 15. d5 {[%clk 0:02:32.2]} 15... Bxc3
{[%clk 0:02:43.7]} 16. Rxc3 {[%clk 0:02:33.1]} 16... Bxf3 {[%clk 0:02:36]} 17.
Bxf3 {[%clk 0:02:28.7]} 17... b5 {[%clk 0:02:25]} 18. cxb5 {[%clk 0:02:26.6]}
18... a6 {[%clk 0:02:25.5]} 19. bxa6 {[%clk 0:02:21.8]} 19... Rxa6 {[%clk
0:02:25.6]} 20. Rc2 {[%clk 0:02:19]} 20... Rfa8 {[%clk 0:02:25.5]} 21. Bg2
{[%clk 0:02:15.2]} 21... Ra3 {[%clk 0:02:24.8]} 22. h4 {[%clk 0:02:13.7]} 22...
Qa6 {[%clk 0:02:16.3]} 23. Qxa6 {[%clk 0:02:10.3]} 23... R8xa6 {[%clk
0:02:17.2]} 24. Rdd2 {[%clk 0:02:10.5]} 24... Kg7 {[%clk 0:02:12.5]} 25. Kf1
{[%clk 0:02:07.5]} 25... R6a5 {[%clk 0:02:09.6]} 26. Ke1 {[%clk 0:02:04.2]}
26... h6 {[%clk 0:02:07.9]} 27. Kd1 {[%clk 0:02:03.2]} 27... g5 {[%clk
0:01:58.9]} 28. hxg5 {[%clk 0:02:02.6]} 28... hxg5 {[%clk 0:01:59.8]} 29. Kc1
{[%clk 0:02:02.2]} 29... g4 {[%clk 0:01:58.3]} 30. Kb1 {[%clk 0:01:58.3]} 30...
Ne5 {[%clk 0:01:58.1]} 31. Be4 {[%clk 0:01:49.1]} 31... Ra8 {[%clk 0:01:55]} 32.
Rd1 {[%clk 0:01:46]} 32... Rb8 {[%clk 0:01:48.2]} 33. Rb2 {[%clk 0:01:37]} 33...
Rb4 {[%clk 0:01:43.6]} 34. Bc2 {[%clk 0:01:32.9]} 34... Ra8 {[%clk 0:01:41.5]}
35. Rh1 {[%clk 0:01:28]} 35... Rab8 {[%clk 0:01:41.8]} 36. a3 {[%clk 0:01:10.1]}
36... R4b6 {[%clk 0:01:40.6]} 37. Ka2 {[%clk 0:01:02.8]} 37... Ra6 {[%clk
0:01:30.2]} 38. Rh7+ {[%clk 0:00:50.9]} 38... Kf6 {[%clk 0:01:25.1]} 39. Rh5
{[%clk 0:00:39.8]} 39... Rxa3+ {[%clk 0:01:23.6]} 40. Kb1 {[%clk 0:00:37.3]}
40... Rba8 {[%clk 0:01:24]} 41. Be4 {[%clk 0:00:27.7]} 41... Ra1+ {[%clk
0:01:11.9]} 42. Kc2 {[%clk 0:00:27.9]} 42... Rf1 {[%clk 0:01:01.6]} 43. Rf5+
{[%clk 0:00:27.7]} 43... Kg7 {[%clk 0:01:01.4]} 44. Rb1 {[%clk 0:00:25.1]} 44...
Ra2+ {[%clk 0:01:00.2]} 45. Kc3 {[%clk 0:00:21.3]} 45... Rfxf2 {[%clk
0:00:56.4]} 46. Rh1 {[%clk 0:00:20]} 46... Rxf5 {[%clk 0:00:52.2]} 47. Bxf5
{[%clk 0:00:20.1]} 47... Rg2 {[%clk 0:00:52.4]} 0-1

[Event "*** SCC Grand Prix: Titled Tuesday Blitz"]
[Site "Chess.com"]
[Date "2020.09.29"]
[Round "5"]
[White "catzapto"]
[Black "nitpicker"]
[Result "1-0"]
[WhiteElo "2067"]
[BlackElo "2235"]
[TimeControl "180+1"]
[EndTime "10:54:43 PDT"]
[Termination "catzapto won by resignation"]

1. e4 {[%clk 0:03:00.9]} 1... c5 {[%clk 0:02:57.6]} 2. Nf3 {[%clk 0:03:01.2]}
2... Nc6 {[%clk 0:02:57.6]} 3. c3 {[%clk 0:03:01]} 3... d5 {[%clk 0:02:56.4]} 4.
exd5 {[%clk 0:03:00.7]} 4... Qxd5 {[%clk 0:02:56.5]} 5. d4 {[%clk 0:02:59.8]}
5... Bf5 {[%clk 0:02:56.5]} 6. Na3 {[%clk 0:02:59]} 6... e6 {[%clk 0:02:46.2]}
7. Nb5 {[%clk 0:02:54.2]} 7... Qd7 {[%clk 0:02:40.7]} 8. Bf4 {[%clk 0:02:53.2]}
8... Rc8 {[%clk 0:02:32.8]} 9. dxc5 {[%clk 0:02:53.1]} 9... Bxc5 {[%clk
0:02:19.8]} 10. Qxd7+ {[%clk 0:02:52]} 10... Kxd7 {[%clk 0:02:19.9]} 11. O-O-O+
{[%clk 0:02:50]} 11... Ke7 {[%clk 0:02:14]} 12. Bd6+ {[%clk 0:02:47.3]} 12...
Bxd6 {[%clk 0:02:13.4]} 13. Nxd6 {[%clk 0:02:48.2]} 13... Rc7 {[%clk 0:02:06.6]}
14. Nxf5+ {[%clk 0:02:48.2]} 14... exf5 {[%clk 0:02:06.7]} 15. Bb5 {[%clk
0:02:42.2]} 15... Nh6 {[%clk 0:01:59.3]} 16. Rhe1+ {[%clk 0:02:39.5]} 16... Kf6
{[%clk 0:01:59.4]} 17. Bxc6 {[%clk 0:02:32.7]} 17... Rxc6 {[%clk 0:01:56.2]} 18.
Rd7 {[%clk 0:02:31.3]} 18... Rb8 {[%clk 0:01:48.2]} 19. Ree7 {[%clk 0:02:24.3]}
19... Re6 {[%clk 0:01:38.8]} 20. Rxb7 {[%clk 0:02:13.9]} 20... Rxe7 {[%clk
0:01:35]} 21. Rxb8 {[%clk 0:02:13.5]} 21... Re2 {[%clk 0:01:35.4]} 22. c4 {[%clk
0:01:45.2]} 22... Rxf2 {[%clk 0:01:31.9]} 23. c5 {[%clk 0:01:45.2]} 23... Ke6
{[%clk 0:01:24.1]} 24. c6 {[%clk 0:01:12.3]} 24... Kd6 {[%clk 0:01:19.7]} 25.
Nd4 {[%clk 0:01:12.5]} 25... Rf4 {[%clk 0:01:13.7]} 26. Rd8+ {[%clk 0:01:09.2]}
26... Kc7 {[%clk 0:01:09.8]} 27. Rd7+ {[%clk 0:01:09.4]} 27... Kc8 {[%clk
0:01:01.7]} 28. b4 {[%clk 0:01:01.5]} 28... a6 {[%clk 0:00:59.8]} 29. a4 {[%clk
0:01:01.3]} 29... Re4 {[%clk 0:00:52.8]} 30. b5 {[%clk 0:01:01]} 30... axb5
{[%clk 0:00:53]} 31. axb5 {[%clk 0:01:01.9]} 31... Ng8 {[%clk 0:00:38.1]} 32. b6
{[%clk 0:01:01.9]} 32... Re8 {[%clk 0:00:31.2]} 33. b7+ {[%clk 0:01:01.4]} 33...
Kb8 {[%clk 0:00:31]} 34. Nb5 {[%clk 0:00:52.9]} 34... Ne7 {[%clk 0:00:28.7]} 35.
Rd8+ {[%clk 0:00:36]} 35... Rxd8 {[%clk 0:00:23.7]} 36. c7+ {[%clk 0:00:36.4]}
1-0

[Event "*** SCC Grand Prix: Titled Tuesday Blitz"]
[Site "Chess.com"]
[Date "2020.09.29"]
[Round "5"]
[White "GameOverBro"]
[Black "Evandro_Barbosa"]
[Result "1-0"]
[WhiteElo "2560"]
[BlackElo "2722"]
[TimeControl "180+1"]
[EndTime "10:54:46 PDT"]
[Termination "GameOverBro won on time"]

1. e4 {[%clk 0:03:00.9]} 1... c5 {[%clk 0:02:59.9]} 2. Ne2 {[%clk 0:02:59.2]}
2... Nc6 {[%clk 0:03:00.3]} 3. Nbc3 {[%clk 0:02:58.8]} 3... g6 {[%clk
0:03:00.3]} 4. d4 {[%clk 0:02:59]} 4... cxd4 {[%clk 0:03:01.2]} 5. Nxd4 {[%clk
0:02:59.4]} 5... Bg7 {[%clk 0:03:00.8]} 6. Nde2 {[%clk 0:03:00]} 6... Nf6 {[%clk
0:03:00.7]} 7. g3 {[%clk 0:03:00.1]} 7... O-O {[%clk 0:03:00.2]} 8. Bg2 {[%clk
0:03:00.5]} 8... Rb8 {[%clk 0:03:00.5]} 9. a4 {[%clk 0:03:00.7]} 9... a6 {[%clk
0:03:00.6]} 10. O-O {[%clk 0:03:01]} 10... b5 {[%clk 0:03:00.1]} 11. axb5 {[%clk
0:03:01.9]} 11... axb5 {[%clk 0:02:56.1]} 12. Nd5 {[%clk 0:02:59.8]} 12... d6
{[%clk 0:02:47.7]} 13. c3 {[%clk 0:02:58]} 13... Nd7 {[%clk 0:02:45.9]} 14. Nd4
{[%clk 0:02:56]} 14... Nxd4 {[%clk 0:02:44.7]} 15. cxd4 {[%clk 0:02:56.6]} 15...
e6 {[%clk 0:02:42.3]} 16. Nb4 {[%clk 0:02:56.3]} 16... Bb7 {[%clk 0:02:39.9]}
17. Be3 {[%clk 0:02:53.5]} 17... Nb6 {[%clk 0:02:34.9]} 18. b3 {[%clk 0:02:53]}
18... Ra8 {[%clk 0:02:31.9]} 19. Qd3 {[%clk 0:02:48.9]} 19... Qd7 {[%clk
0:02:25.5]} 20. Rfc1 {[%clk 0:02:40.4]} 20... Rxa1 {[%clk 0:02:20]} 21. Rxa1
{[%clk 0:02:40]} 21... Ra8 {[%clk 0:02:18.5]} 22. Qc3 {[%clk 0:02:27.6]} 22...
f5 {[%clk 0:01:59.4]} 23. f3 {[%clk 0:02:26.2]} 23... fxe4 {[%clk 0:01:58.6]}
24. fxe4 {[%clk 0:02:27.1]} 24... Rc8 {[%clk 0:01:43]} 25. Qd2 {[%clk 0:02:20]}
25... Ra8 {[%clk 0:01:25.5]} 26. Qc3 {[%clk 0:02:15.2]} 26... Rxa1+ {[%clk
0:01:25.3]} 27. Qxa1 {[%clk 0:02:15.1]} 27... Nc8 {[%clk 0:01:24]} 28. Qc3
{[%clk 0:02:08.5]} 28... Ne7 {[%clk 0:01:22.7]} 29. h4 {[%clk 0:02:06.2]} 29...
Qd8 {[%clk 0:01:18.4]} 30. Kh2 {[%clk 0:02:02.9]} 30... h5 {[%clk 0:01:10.3]}
31. Qd3 {[%clk 0:02:02.1]} 31... Qd7 {[%clk 0:01:06.5]} 32. Bh3 {[%clk
0:02:02.1]} 32... d5 {[%clk 0:00:47.4]} 33. exd5 {[%clk 0:01:50.9]} 33... Nf5
{[%clk 0:00:42.8]} 34. dxe6 {[%clk 0:01:39.1]} 34... Qxe6 {[%clk 0:00:42.9]} 35.
Bxf5 {[%clk 0:01:38.1]} 35... gxf5 {[%clk 0:00:40.5]} 36. d5 {[%clk 0:01:35.4]}
36... Qe5 {[%clk 0:00:32.2]} 37. Nc6 {[%clk 0:01:30.6]} 37... Qb2+ {[%clk
0:00:29.3]} 38. Kh3 {[%clk 0:01:29.5]} 38... f4 {[%clk 0:00:24.5]} 39. Qf5
{[%clk 0:01:14.9]} 39... fxe3 {[%clk 0:00:12.9]} 40. Ne7+ {[%clk 0:01:14.4]}
40... Kh8 {[%clk 0:00:12.7]} 41. Qxh5+ {[%clk 0:01:11.1]} 1-0

[Event "*** SCC Grand Prix: Titled Tuesday Blitz"]
[Site "Chess.com"]
[Date "2020.09.29"]
[Round "5"]
[White "Hikaru"]
[Black "BilodeauA"]
[Result "1-0"]
[WhiteElo "3249"]
[BlackElo "2887"]
[TimeControl "180+1"]
[EndTime "10:54:47 PDT"]
[Termination "Hikaru won by resignation"]

1. Nf3 {[%clk 0:03:00.9]} 1... d5 {[%clk 0:02:59.8]} 2. e3 {[%clk 0:02:54.7]}
2... c5 {[%clk 0:02:59.4]} 3. b3 {[%clk 0:02:52.6]} 3... e6 {[%clk 0:02:59.9]}
4. Bb2 {[%clk 0:02:47.8]} 4... Nc6 {[%clk 0:03:00.4]} 5. d4 {[%clk 0:02:47.7]}
5... Nf6 {[%clk 0:02:55.8]} 6. Nbd2 {[%clk 0:02:38]} 6... Bd6 {[%clk 0:02:42.3]}
7. dxc5 {[%clk 0:02:27.3]} 7... Bxc5 {[%clk 0:02:43.2]} 8. a3 {[%clk 0:02:27.9]}
8... O-O {[%clk 0:02:39.7]} 9. b4 {[%clk 0:02:20.1]} 9... Bb6 {[%clk 0:02:33.6]}
10. c4 {[%clk 0:02:19.9]} 10... a5 {[%clk 0:01:59.9]} 11. c5 {[%clk 0:02:13.1]}
11... Bc7 {[%clk 0:01:59.9]} 12. b5 {[%clk 0:02:13.1]} 12... Ne7 {[%clk
0:02:00.2]} 13. Bd3 {[%clk 0:02:13]} 13... Ng6 {[%clk 0:01:59.5]} 14. O-O {[%clk
0:02:12]} 14... Qe7 {[%clk 0:01:59.7]} 15. b6 {[%clk 0:01:26.4]} 15... Bb8
{[%clk 0:01:57.7]} 16. Qc2 {[%clk 0:01:19]} 16... e5 {[%clk 0:01:57.5]} 17. e4
{[%clk 0:01:17.5]} 17... Nf4 {[%clk 0:01:28.6]} 18. Rac1 {[%clk 0:01:10.6]}
18... Bg4 {[%clk 0:01:16.9]} 19. exd5 {[%clk 0:01:04.5]} 19... N6xd5 {[%clk
0:01:03.1]} 20. Bxh7+ {[%clk 0:01:02.1]} 20... Kh8 {[%clk 0:01:03.4]} 21. Rfe1
{[%clk 0:01:02.7]} 21... f5 {[%clk 0:00:37.7]} 22. c6 {[%clk 0:00:34.4]} 22...
bxc6 {[%clk 0:00:35.4]} 23. Nxe5 {[%clk 0:00:32.1]} 23... Qh4 {[%clk 0:00:34.8]}
24. Qxc6 {[%clk 0:00:21.1]} 24... Bxe5 {[%clk 0:00:24.7]} 25. Bxe5 {[%clk
0:00:22]} 25... Rac8 {[%clk 0:00:17.6]} 26. Qxc8 {[%clk 0:00:19.7]} 26... Rxc8
{[%clk 0:00:18.5]} 27. Rxc8+ {[%clk 0:00:19.9]} 27... Kxh7 {[%clk 0:00:19.1]}
28. b7 {[%clk 0:00:20.8]} 28... Nd3 {[%clk 0:00:10.4]} 29. Bg3 {[%clk
0:00:20.8]} 29... Qg5 {[%clk 0:00:05.2]} 30. b8=Q {[%clk 0:00:21.3]} 30... Nxe1
{[%clk 0:00:04.3]} 31. Rh8+ {[%clk 0:00:21.6]} 31... Kg6 {[%clk 0:00:05]} 32.
Qe8+ {[%clk 0:00:20.8]} 1-0

[Event "*** SCC Grand Prix: Titled Tuesday Blitz"]
[Site "Chess.com"]
[Date "2020.09.29"]
[Round "5"]
[White "EvgenyRomanov"]
[Black "OK97"]
[Result "1-0"]
[WhiteElo "2611"]
[BlackElo "2785"]
[TimeControl "180+1"]
[EndTime "10:54:47 PDT"]
[Termination "EvgenyRomanov won by resignation"]

1. b3 {[%clk 0:02:47.5]} 1... e5 {[%clk 0:02:59.3]} 2. Bb2 {[%clk 0:02:47]} 2...
Nc6 {[%clk 0:02:59.8]} 3. c4 {[%clk 0:02:47.4]} 3... Nf6 {[%clk 0:02:43.6]} 4.
d3 {[%clk 0:02:47.1]} 4... Bb4+ {[%clk 0:02:41.7]} 5. Nd2 {[%clk 0:02:46.7]}
5... d5 {[%clk 0:02:37.8]} 6. cxd5 {[%clk 0:02:47.6]} 6... Nxd5 {[%clk
0:02:37.4]} 7. Nf3 {[%clk 0:02:48.2]} 7... Qe7 {[%clk 0:02:34.9]} 8. g3 {[%clk
0:02:45.1]} 8... h5 {[%clk 0:02:21]} 9. Bg2 {[%clk 0:02:43.9]} 9... Be6 {[%clk
0:01:57]} 10. Nxe5 {[%clk 0:02:31.8]} 10... Nxe5 {[%clk 0:01:55.7]} 11. Bxe5
{[%clk 0:02:32.7]} 11... O-O-O {[%clk 0:01:52.1]} 12. Bxg7 {[%clk 0:02:20.1]}
12... Rhg8 {[%clk 0:01:41.5]} 13. Bb2 {[%clk 0:02:18.9]} 13... Nf4 {[%clk
0:01:39.8]} 14. Bf3 {[%clk 0:01:19]} 14... Nxd3+ {[%clk 0:01:11.3]} 15. exd3
{[%clk 0:01:18.9]} 15... Bxb3+ {[%clk 0:01:09.5]} 16. Qe2 {[%clk 0:01:17.2]}
16... Bxd2+ {[%clk 0:00:56.1]} 17. Kxd2 {[%clk 0:01:15.3]} 17... Rxd3+ {[%clk
0:00:42.5]} 18. Qxd3 {[%clk 0:00:53.3]} 18... Rd8 {[%clk 0:00:33]} 19. axb3
{[%clk 0:00:50.9]} 19... Qb4+ {[%clk 0:00:27.7]} 20. Bc3 {[%clk 0:00:47.7]}
20... Rxd3+ {[%clk 0:00:27.7]} 21. Kxd3 {[%clk 0:00:47.8]} 21... Qb5+ {[%clk
0:00:28.2]} 22. Kd2 {[%clk 0:00:44.2]} 22... Qg5+ {[%clk 0:00:24.7]} 23. Ke1
{[%clk 0:00:35.9]} 23... Qe7+ {[%clk 0:00:24.2]} 24. Kf1 {[%clk 0:00:30.4]}
24... Qc5 {[%clk 0:00:24.2]} 25. Rc1 {[%clk 0:00:24]} 25... h4 {[%clk
0:00:15.4]} 26. Kg2 {[%clk 0:00:22.2]} 26... Qf5 {[%clk 0:00:11.7]} 27. h3
{[%clk 0:00:21]} 27... c6 {[%clk 0:00:07.3]} 28. Bg4 {[%clk 0:00:19.3]} 1-0

[Event "*** SCC Grand Prix: Titled Tuesday Blitz"]
[Site "Chess.com"]
[Date "2020.09.29"]
[Round "5"]
[White "dpopadic"]
[Black "zajka-molotok"]
[Result "0-1"]
[WhiteElo "2330"]
[BlackElo "2494"]
[TimeControl "180+1"]
[EndTime "10:54:47 PDT"]
[Termination "zajka-molotok won by checkmate"]

1. e4 {[%clk 0:03:00.9]} 1... d6 {[%clk 0:02:59]} 2. Nc3 {[%clk 0:03:00.4]} 2...
Nf6 {[%clk 0:02:57.7]} 3. f4 {[%clk 0:02:59.7]} 3... d5 {[%clk 0:02:55.7]} 4. e5
{[%clk 0:02:48.4]} 4... Ne4 {[%clk 0:02:48.4]} 5. d3 {[%clk 0:02:35.6]} 5...
Nxc3 {[%clk 0:02:44.6]} 6. bxc3 {[%clk 0:02:35.1]} 6... e6 {[%clk 0:02:40.8]} 7.
Nf3 {[%clk 0:02:33.4]} 7... Be7 {[%clk 0:02:34.3]} 8. Be2 {[%clk 0:02:33.3]}
8... O-O {[%clk 0:02:31.1]} 9. O-O {[%clk 0:02:33.1]} 9... c5 {[%clk 0:02:30.2]}
10. Rb1 {[%clk 0:02:32]} 10... b6 {[%clk 0:02:28.9]} 11. Kh1 {[%clk 0:02:31.8]}
11... Nc6 {[%clk 0:02:27.9]} 12. Qe1 {[%clk 0:02:30.7]} 12... f6 {[%clk
0:02:25]} 13. exf6 {[%clk 0:02:26.5]} 13... Bxf6 {[%clk 0:02:25.9]} 14. Bd2
{[%clk 0:02:26.8]} 14... Qd6 {[%clk 0:02:22]} 15. Qg3 {[%clk 0:02:26.5]} 15...
Bd7 {[%clk 0:02:16.7]} 16. Rbe1 {[%clk 0:02:22.7]} 16... Rae8 {[%clk 0:02:15.6]}
17. Bd1 {[%clk 0:02:22.6]} 17... b5 {[%clk 0:01:55.7]} 18. h3 {[%clk 0:02:20.3]}
18... a5 {[%clk 0:01:54.2]} 19. Nh2 {[%clk 0:01:58.9]} 19... b4 {[%clk
0:01:50.2]} 20. cxb4 {[%clk 0:01:46.8]} 20... axb4 {[%clk 0:01:49.1]} 21. Bh5
{[%clk 0:01:41.5]} 21... Ra8 {[%clk 0:01:26.5]} 22. Bd1 {[%clk 0:01:36.2]} 22...
Rxa2 {[%clk 0:01:23.1]} 23. Be3 {[%clk 0:01:34.7]} 23... Bc3 {[%clk 0:01:17.7]}
24. Re2 {[%clk 0:01:30.6]} 24... Nd4 {[%clk 0:01:16.3]} 25. Bxd4 {[%clk
0:01:26.4]} 25... Bxd4 {[%clk 0:01:16.9]} 26. Ng4 {[%clk 0:00:53.9]} 26... Kh8
{[%clk 0:01:09.4]} 27. Ne5 {[%clk 0:00:47.1]} 27... Bxe5 {[%clk 0:01:02.4]} 28.
Rxe5 {[%clk 0:00:46.6]} 28... Qxe5 {[%clk 0:00:58.1]} 29. fxe5 {[%clk
0:00:45.9]} 29... Rxf1+ {[%clk 0:00:58.1]} 30. Kh2 {[%clk 0:00:46]} 30... Rxd1
{[%clk 0:00:58]} 31. Qg5 {[%clk 0:00:44.9]} 31... Ra8 {[%clk 0:00:54.8]} 32. Qe7
{[%clk 0:00:44.6]} 32... Ba4 {[%clk 0:00:48.7]} 33. Qxc5 {[%clk 0:00:43.6]}
33... Rf1 {[%clk 0:00:38.5]} 34. Qxb4 {[%clk 0:00:42.4]} 34... Bxc2 {[%clk
0:00:36.9]} 35. Qd6 {[%clk 0:00:38.2]} 35... Bxd3 {[%clk 0:00:29.6]} 36. Qxe6
{[%clk 0:00:37.9]} 36... Be4 {[%clk 0:00:28.2]} 37. Qc6 {[%clk 0:00:36]} 37...
Raf8 {[%clk 0:00:26.9]} 38. e6 {[%clk 0:00:36]} 38... R1f2 {[%clk 0:00:23.3]}
39. Kg3 {[%clk 0:00:36.2]} 39... Rxg2+ {[%clk 0:00:22.6]} 40. Kh4 {[%clk
0:00:36.9]} 40... g5+ {[%clk 0:00:21.4]} 41. Kh5 {[%clk 0:00:36.2]} 41... Bf3+
{[%clk 0:00:21.5]} 42. Kh6 {[%clk 0:00:33.7]} 42... Rf6# {[%clk 0:00:22.1]} 0-1

[Event "*** SCC Grand Prix: Titled Tuesday Blitz"]
[Site "Chess.com"]
[Date "2020.09.29"]
[Round "5"]
[White "malakismayil"]
[Black "maxsergej"]
[Result "1-0"]
[WhiteElo "2327"]
[BlackElo "2094"]
[TimeControl "180+1"]
[EndTime "10:54:48 PDT"]
[Termination "malakismayil won on time"]

1. e4 {[%clk 0:03:00.9]} 1... e5 {[%clk 0:02:58.8]} 2. Nf3 {[%clk 0:03:01.2]}
2... Nc6 {[%clk 0:02:58.8]} 3. Bc4 {[%clk 0:03:01.5]} 3... Nf6 {[%clk
0:02:58.2]} 4. d3 {[%clk 0:02:58.1]} 4... h6 {[%clk 0:02:57.7]} 5. Nc3 {[%clk
0:02:57.1]} 5... Be7 {[%clk 0:02:57.4]} 6. O-O {[%clk 0:02:55.8]} 6... O-O
{[%clk 0:02:57.4]} 7. Be3 {[%clk 0:02:54.5]} 7... d6 {[%clk 0:02:57.7]} 8. h3
{[%clk 0:02:54]} 8... a6 {[%clk 0:02:54]} 9. a4 {[%clk 0:02:52.6]} 9... Na5
{[%clk 0:02:49]} 10. Ba2 {[%clk 0:02:51.6]} 10... c5 {[%clk 0:02:49.3]} 11. Nd2
{[%clk 0:02:45.5]} 11... Be6 {[%clk 0:02:40.6]} 12. f4 {[%clk 0:02:38.2]} 12...
Bxa2 {[%clk 0:02:39.5]} 13. Rxa2 {[%clk 0:02:35.9]} 13... exf4 {[%clk
0:02:38.4]} 14. Bxf4 {[%clk 0:02:34.3]} 14... Nc6 {[%clk 0:02:30]} 15. Nf3
{[%clk 0:02:24.9]} 15... Nh5 {[%clk 0:02:20.9]} 16. Bh2 {[%clk 0:02:16.1]} 16...
Nf6 {[%clk 0:01:59.1]} 17. Qe2 {[%clk 0:02:06]} 17... Rc8 {[%clk 0:01:46]} 18.
Qf2 {[%clk 0:02:02.8]} 18... Nd4 {[%clk 0:01:35.2]} 19. Kh1 {[%clk 0:01:44.4]}
19... Nxf3 {[%clk 0:01:26.3]} 20. Qxf3 {[%clk 0:01:45.3]} 20... Nd7 {[%clk
0:01:15.9]} 21. Nd5 {[%clk 0:01:40.8]} 21... Bf6 {[%clk 0:01:13]} 22. Bxd6
{[%clk 0:01:34.7]} 22... Re8 {[%clk 0:01:13.1]} 23. c4 {[%clk 0:01:27.9]} 23...
Re6 {[%clk 0:01:04.2]} 24. Bg3 {[%clk 0:01:24.2]} 24... Qf8 {[%clk 0:00:46]} 25.
b3 {[%clk 0:01:18.3]} 25... Bd4 {[%clk 0:00:34.8]} 26. Re2 {[%clk 0:01:07.3]}
26... Ne5 {[%clk 0:00:28.4]} 27. Bxe5 {[%clk 0:01:05.1]} 27... Bxe5 {[%clk
0:00:28.3]} 28. Qh5 {[%clk 0:01:02.1]} 28... Bb8 {[%clk 0:00:18.8]} 29. Ref2
{[%clk 0:01:01]} 29... Qd6 {[%clk 0:00:11.6]} 30. Qxf7+ {[%clk 0:00:59.3]} 30...
Kh8 {[%clk 0:00:08.9]} 31. Qf4 {[%clk 0:00:47]} 31... Qd8 {[%clk 0:00:04.9]} 32.
Qg4 {[%clk 0:00:44.1]} 32... Qd6 {[%clk 0:00:02.7]} 33. Nf4 {[%clk 0:00:34.3]}
1-0

[Event "*** SCC Grand Prix: Titled Tuesday Blitz"]
[Site "Chess.com"]
[Date "2020.09.29"]
[Round "5"]
[White "zmeeed67"]
[Black "Sadykov_Ramil"]
[Result "1-0"]
[WhiteElo "2384"]
[BlackElo "2509"]
[TimeControl "180+1"]
[EndTime "10:54:49 PDT"]
[Termination "zmeeed67 won by resignation"]

1. e4 {[%clk 0:03:00.9]} 1... c5 {[%clk 0:02:44.7]} 2. g3 {[%clk 0:03:00.2]}
2... Nc6 {[%clk 0:02:42.8]} 3. Bg2 {[%clk 0:03:00.2]} 3... g6 {[%clk 0:02:41.8]}
4. Ne2 {[%clk 0:03:00.7]} 4... Bg7 {[%clk 0:02:42]} 5. O-O {[%clk 0:03:01.1]}
5... e6 {[%clk 0:02:41.7]} 6. Nbc3 {[%clk 0:03:01.5]} 6... Nge7 {[%clk
0:02:41.6]} 7. a3 {[%clk 0:03:01.8]} 7... d5 {[%clk 0:02:40.6]} 8. exd5 {[%clk
0:02:59.7]} 8... exd5 {[%clk 0:02:41.5]} 9. Rb1 {[%clk 0:02:56.7]} 9... a5
{[%clk 0:02:24]} 10. d3 {[%clk 0:02:56.1]} 10... O-O {[%clk 0:02:22.9]} 11. Nf4
{[%clk 0:02:41.2]} 11... d4 {[%clk 0:02:17.5]} 12. Ne4 {[%clk 0:02:41.6]} 12...
b6 {[%clk 0:02:13.4]} 13. b4 {[%clk 0:02:30.4]} 13... axb4 {[%clk 0:02:08.9]}
14. axb4 {[%clk 0:02:30]} 14... cxb4 {[%clk 0:02:08.5]} 15. Bd2 {[%clk 0:02:04]}
15... Rb8 {[%clk 0:01:30.7]} 16. h4 {[%clk 0:02:02.2]} 16... h5 {[%clk
0:01:28.7]} 17. Re1 {[%clk 0:01:41.4]} 17... Bg4 {[%clk 0:01:24.6]} 18. Qc1
{[%clk 0:01:37.5]} 18... Re8 {[%clk 0:01:17.6]} 19. Ng5 {[%clk 0:01:26.4]} 19...
Qd6 {[%clk 0:01:03.6]} 20. Qb2 {[%clk 0:01:16]} 20... Rbc8 {[%clk 0:00:32.9]}
21. Qb3 {[%clk 0:01:15.6]} 21... Rf8 {[%clk 0:00:22.1]} 22. Kh2 {[%clk
0:00:59.8]} 22... Be5 {[%clk 0:00:17.9]} 23. Re4 {[%clk 0:00:41.8]} 23... Kg7
{[%clk 0:00:14.2]} 24. Rbe1 {[%clk 0:00:40.8]} 24... f5 {[%clk 0:00:11.7]} 25.
Nfe6+ {[%clk 0:00:39.8]} 25... Kh8 {[%clk 0:00:09.1]} 26. Nxf8 {[%clk 0:00:38]}
26... Rxf8 {[%clk 0:00:04.7]} 27. Rxg4 {[%clk 0:00:32.5]} 27... hxg4 {[%clk
0:00:04]} 28. Nf7+ {[%clk 0:00:32.2]} 28... Rxf7 {[%clk 0:00:04.6]} 29. Qxf7
{[%clk 0:00:32.2]} 29... Nd8 {[%clk 0:00:03.5]} 30. Qe8+ {[%clk 0:00:27.6]}
30... Ng8 {[%clk 0:00:04.1]} 31. Rxe5 {[%clk 0:00:24.6]} 1-0